[Event "European Women-ch 2023"]
[Site "Petrovac"]
[Date "2023.03.27"]
[Round "9.21"]
[White "Goriachkina, Oksana"]
[Black "Petrovska, Katerina"]
[Result "1-0"]
[ECO "E14"]
[WhiteElo "1759"]
[BlackElo "1907"]
[Annotator "TA"]
[PlyCount "123"]
[EventDate "2023.03.15"]
[EventType "swiss"]
[EventCountry "MNE"]
[SourceTitle "playchess.com"]
[Source "ChessBase"]
[SourceQuality "1"]
[TimeControl "40/5400+30:1800+30"]

{[%evp 21,123,32,33,25,28,11,18,8,30,21,31,15,24,26,54,47,46,33,91,57,54,53,54,26,143,144,166,168,152,110,114,47,41,46,41,51,43,21,36,0,64,62,70,60,74,68,68,56,65,58,58,45,86,70,118,113,125,115,115,108,116,96,120,135,135,118,129,123,135,134,154,154,573,589,516,393,352,360,356,364,518,400,543,536,521,512,476,408,588,547,690,601,29960,12637,29964,29967,29944,8402,29979,29980,29981,29982,29982,29982]} 1. d4 {[%emt 0:00:01]} e6 {[%emt 0:00:11]} 2. c4 {[%emt 0:00:03]} Nf6 {[%emt 0:00:05]} 3. Nf3 {[%emt 0:00:04]} Bb4+ {[%emt 0:00:14]} 4. Nbd2 {[%emt 0:00:05]} b6 {[%emt 0:00:22]} 5. a3 {[%emt 0:00:06]} Bxd2+ {[%emt 0:00:08]} 6. Qxd2 {[%emt 0:00:02]} Bb7 {[%emt 0:00:13]} 7. e3 {[%emt 0:00:04]} a5 {[%emt 0:00:48]} 8. b3 {[%emt 0:00:05]} d6 {[%emt 0:01:05]} 9. Be2 {[%emt 0:01:05]} Nbd7 {[%emt 0:00:29]} 10. O-O {[%emt 0:00:59]} O-O {[%emt 0:00:14][%cal Bh8f8,Bf8f6,Bf6h6][%mdl 32]} 11. Bb2 {[%emt 0:00:06]} Qe7 {[%emt 0:06:40]} 12. Rfd1 {[%emt 0:04:07] E14: Queen's Indian: Classical Variation (4 e3).} Ne4 {[%emt 0:01:23] [#]} 13. Qe1 $146 {[%emt 0:07:32]} ({Predecessor:} 13. Qc2 f5 14. d5 e5 15. b4 Ng5 16. Bc3 Nxf3+ 17. Bxf3 Qh4 18. Be2 Nf6 19. Be1 axb4 20. axb4 {1-0 Yilmaz,M (2614)-Hjartarson,J (2536) Reykjavik op 2017 (9)}) 13... f5 {[%emt 0:01:43]} 14. b4 {[%emt 0:01:59] The position is equal.} Rf6 {[%emt 0:07:20]} (14... Qf6 {keeps more tension.} 15. Nd2 Qg5 16. d5 exd5 17. cxd5 Ndf6) 15. Nd2 {[%emt 0:11:19]} Nxd2 {[%emt 0:18:40]} 16. Rxd2 {[%emt 0:04:29]} Rh6 {[%emt 0:16:45] [#] aiming for ...Qh4.} 17. f3 {[%emt 0:03:12]} Qg5 {[%emt 0:15:20]} 18. Qf2 {[%emt 0:02:30]} Qh5 {[%emt 0:00:07]} 19. h3 {[%emt 0:02:48][%cal Oc4c5]} g5 {[%emt 0:02:29]} (19... Nf6 $14) 20. c5 {[%emt 0:09:49] And now Rc1 would win.} Nf6 $1 {[%emt 0:10:38]} 21. cxd6 {[%emt 0:10:36]} cxd6 {[%emt 0:00:05]} 22. Qg3 {[%emt 0:00:27]} (22. Rc2 {with more complications.} g4 23. fxg4 fxg4 24. Rc7) 22... Rd8 {[%emt 0:00:54]} (22... g4 $1 $11 {keeps the balance.}) 23. bxa5 $16 {[%emt 0:02:46]} bxa5 {[%emt 0:00:04][%cal Og5g4]} 24. Bc3 {[%emt 0:07:11]} g4 {[%emt 0:01:20]} 25. fxg4 {[%emt 0:10:28]} fxg4 {[%emt 0:00:17]} 26. Bxg4 {[%emt 0:00:24]} (26. Rb2 $16 Be4 27. Rf1 (27. Bxg4 Nxg4 28. Bxa5 Rd7 $16)) 26... Nxg4 $14 {[%emt 0:00:10]} 27. Qxg4+ {[%emt 0:01:50]} Qxg4 {[%emt 0:01:16]} 28. hxg4 {[%emt 0:00:01]} a4 {[%emt 0:02:39]} 29. Rb1 {[%emt 0:04:28]} Bd5 {[%emt 0:00:08]} 30. Rb6 {[%emt 0:00:38]} Bb3 {[%emt 0:00:20]} (30... Rc8 $11 31. Bb4 Rc1+ 32. Kf2 Rg6) 31. Bb4 {[%emt 0:00:45]} d5 {[%emt 0:00:55]} 32. Rf2 {[%emt 0:02:15]} Rg6 {[%emt 0:00:27]} 33. Rf4 {[%emt 0:01:34]} Re8 {[%emt 0:04:47] Repels Be7} 34. Rb7 {[%emt 0:01:15]} Bd1 {[%emt 0:01:25]} 35. Ra7 {[%emt 0:00:33]} Rg7 {[%emt 0:01:07]} 36. Ra5 {[%emt 0:01:10]} Rf7 {[%emt 0:02:42]} 37. Kh2 {[%emt 0:00:53]} Kg7 {[%emt 0:00:34]} (37... Rxf4 $14 38. exf4 Bxg4) 38. Kg3 {[%emt 0:00:40]} Kg6 {[%emt 0:02:22]} 39. Rxf7 {[%emt 0:03:09]} Kxf7 $16 {[%emt 0:00:04][%mdl 4096] Endgame KRB-KRB} 40. Ra7+ {[%emt 0:00:00]} Kg6 {[%emt 0:00:00]} 41. Kf4 {[%emt 0:00:14]} h6 {[%emt 0:05:10]} 42. Ke5 {[%emt 0:03:09]} Bxg4 {[%emt 0:11:03]} 43. Rxa4 {[%emt 0:00:18] White has more active pieces.} Rc8 {[%emt 0:00:22]} 44. Bc5 {[%emt 0:01:43]} h5 {[%emt 0:09:41]} 45. Rb4 {[%emt 0:09:36]} Kg5 {[%emt 0:04:53]} 46. a4 {[%emt 0:01:37][%cal Ba3a4,Ba4a5][%mdl 32]} Kh4 $2 {[%emt 0:00:31] Loses the game.} (46... Ra8 $16 {is a better chance.} 47. Bd6 Kg6) 47. a5 $18 {[%emt 0:01:50]} Kg3 {[%emt 0:01:37][%cal Oc8a8]} 48. Rb2 {[%emt 0:02:44]} Ra8 {[%emt 0:01:28]} 49. Bb6 {[%emt 0:00:12]} Bf5 {[%emt 0:00:31]} 50. Kd6 {[%emt 0:01:42]} Be4 {[%emt 0:00:58]} (50... Ra6 $142 51. Kc7 Bd3) 51. Kc7 {[%emt 0:01:29]} ({Weaker is} 51. Kxe6 Bxg2 52. Bc7+ Kf3 $18) 51... Bd3 {[%emt 0:00:40]} 52. Kb7 {[%emt 0:00:10]} Ra6 {[%emt 0:00:30]} 53. Bc7+ {[%emt 0:00:49]} Kg4 {[%emt 0:00:25]} 54. Rf2 {[%emt 0:01:08]} Bc4 {[%emt 0:00:39]} (54... Bb5 $142 55. Rf8 Rc6) 55. Rf8 {[%emt 0:04:54]} Bd3 {[%emt 0:01:13]} 56. Ra8 {[%emt 0:00:35]} Rxa8 {[%emt 0:00:47]} 57. Kxa8 {[%emt 0:00:01] [#] Threatening mate with Kb7. KB-KB} h4 {[%emt 0:01:19]} 58. Kb7 {[%emt 0:00:11]} Bf1 {[%emt 0:00:36]} 59. a6 {[%emt 0:00:13] a7 would kill now.} Bxa6+ {[%emt 0:00:18]} 60. Kxa6 {[%emt 0:00:06] White mates.} h3 {[%emt 0:00:35]} 61. gxh3+ {[%emt 0:00:05]} Kxh3 {[%emt 0:00:07]} 62. Kb6 {[%emt 0:00:27] Weighted Error Value: White=0.14 (very precise) /Black=0.66} 1-0

[Event "European Women-ch 2023"]
[Site "Petrovac"]
[Date "2023.03.27"]
[Round "9.22"]
[White "Radeva, Viktoria"]
[Black "Froewis, Annika"]
[Result "1/2-1/2"]
[ECO "B83"]
[WhiteElo "2247"]
[BlackElo "2123"]
[Annotator "TA"]
[PlyCount "76"]
[EventDate "2023.03.15"]
[EventType "swiss"]
[EventCountry "MNE"]
[SourceTitle "playchess.com"]
[Source "ChessBase"]
[SourceQuality "1"]
[TimeControl "40/5400+30:1800+30"]

{[%evp 25,76,0,0,0,0,0,0,0,0,0,0,0,0,-4,0,-15,-25,-21,-21,-21,-19,-62,-58,-59,0,-133,0,0,0,0,0,-77,-28,-41,0,0,99,0,0,0,0,0,0,0,0,0,0,0,0,0,0,0,0]} 1. e4 {[%emt 0:00:03]} c5 {[%emt 0:00:06]} 2. Nf3 {[%emt 0:00:17]} e6 {[%emt 0:00:12]} 3. d4 {[%emt 0:00:09]} cxd4 {[%emt 0:00:05]} 4. Nxd4 {[%emt 0:00:03]} Nf6 {[%emt 0:00:13]} 5. Nc3 {[%emt 0:00:09]} d6 {[%emt 0:00:14]} 6. Be2 {[%emt 0:02:08]} Be7 {[%emt 0:01:14]} 7. O-O {[%emt 0:00:15]} O-O {[%emt 0:00:50]} 8. f4 {[%emt 0:00:27]} Nc6 {[%emt 0:00:49]} 9. Be3 {[%emt 0:00:13]} Qc7 {[%emt 0:01:48]} 10. Qe1 {[%emt 0:00:51]} Nxd4 {[%emt 0:00:20]} 11. Bxd4 {[%emt 0:00:08]} e5 {[%emt 0:00:27]} 12. fxe5 {[%emt 0:00:56]} dxe5 {[%emt 0:00:08]} 13. Qg3 {[%emt 0:00:13]} Bc5 {[%emt 0:00:24]} 14. Bxc5 {[%emt 0:00:15] B83: Sicilian Scheveningen: 6 Be2, lines without ...a6.} Qxc5+ {[%emt 0:00:06]} 15. Kh1 {[%emt 0:00:03]} Kh8 {[%emt 0:00:31]} 16. Rxf6 {[%emt 0:06:06]} gxf6 {[%emt 0:00:07]} 17. Qh4 {[%emt 0:00:43]} Rg8 $1 {[%emt 0:00:46]} 18. Qxf6+ {[%emt 0:06:43]} Rg7 {[%emt 0:00:07] [#]} 19. Nd5 $146 {[%emt 0:19:32]} (19. Rd1 $5 Be6 $8 20. Rd8+ Rxd8 {[%mdl 64] Remove Defender} 21. Qxd8+ Rg8 22. Qf6+ Rg7 23. Qd8+ Rg8 24. Qf6+ Rg7 25. Qd8+ $11) ({Predecessor:} 19. Rd1 Be6 20. Rd8+ Rxd8 21. Qxd8+ Rg8 22. Qf6+ {½-½ Nepomniachtchi,I (2720)-Potkin,V (2646) RUS-ch 63rd Moscow 2010 (6)}) 19... Qxc2 {[%emt 0:07:12] And now ...Bh3 would win.} 20. Bf3 {[%emt 0:17:00]} Be6 {[%emt 0:11:09]} 21. Qxe5 {[%emt 0:04:55]} Bxd5 {[%emt 0:01:55]} 22. exd5 {[%emt 0:00:24]} Qc5 {[%emt 0:03:10]} 23. Qf6 {[%emt 0:06:45]} Re8 {[%emt 0:20:38]} 24. d6 {[%emt 0:09:45] aiming for d7.} Qb4 {[%emt 0:06:30]} ({Black should try} 24... Qg5 $1 $15 25. Qd4 f6) 25. Rf1 {[%emt 0:10:22]} (25. h3 $1 $11 {remains equal.} Re1+ 26. Rxe1 Qxe1+ 27. Kh2 Qg3+ 28. Kh1 Qe1+ 29. Kh2 Qg3+ 30. Kh1 Qe1+) 25... Re1 {[%emt 0:22:16]} (25... Qd2 $1 $17 {...Re6 would be deadly.} 26. h3 (26. Bxb7 Re6 $17) 26... Re6 27. Qd8+ Rg8) 26. Qd8+ $1 $11 {[%emt 0:00:05]} Rg8 {[%emt 0:00:14][%cal Re1f1]} 27. Qf6+ {[%emt 0:00:05]} Rg7 {[%emt 0:00:05][%cal Re1f1]} 28. Be2 {[%emt 0:04:19] [#]} Rxf1+ $1 $17 {[%emt 0:13:15]} (28... Rxe2 $2 29. d7 Qf8 30. d8=Q $18) 29. Bxf1 {[%emt 0:00:06][%mdl 4096] Endgame Intending d7 and mate. KQR-KQB} Qb6 {[%emt 0:01:13]} (29... Qg4 $5 {[%cal Rg4e6]}) 30. h3 {[%emt 0:07:24]} a6 {[%emt 0:04:14] [#]} (30... Qc6 $11) 31. Kh2 {[%emt 0:01:23] White is more active.} (31. Be2 $1 $16) 31... Qc5 $11 {[%emt 0:04:08] The position is equal.} 32. Qd8+ {[%emt 0:03:02]} Rg8 {[%emt 0:00:01]} 33. Qf6+ {[%emt 0:00:01]} Rg7 {[%emt 0:00:06]} 34. h4 {[%emt 0:01:15]} Qc8 {[%emt 0:01:07] White must now prevent ...Qe6.} 35. Bc4 {[%emt 0:00:55][%mdl 64] Inhibits Qe6. Deflection} Qxc4 {[%emt 0:01:25]} 36. Qd8+ {[%emt 0:00:06]} Rg8 {[%emt 0:00:04]} 37. Qf6+ {[%emt 0:00:05]} Rg7 {[%emt 0:00:02]} 38. Qd8+ {[%emt 0:00:10]} Rg8 {[%emt 0:00:08] An interesting game.   Weighted Error Value: White=0.21 (precise) /Black=0.23 (precise)} 1/2-1/2

[Event "European Women-ch 2023"]
[Site "Petrovac"]
[Date "2023.03.27"]
[Round "9.22"]
[White "Ivanovic, Tara"]
[Black "Zhezhovska, Monika"]
[Result "0-1"]
[ECO "B59"]
[WhiteElo "1472"]
[BlackElo "1761"]
[Annotator "NA RC COMBH"]
[PlyCount "42"]
[EventDate "2023.03.15"]
[EventType "swiss"]
[EventCountry "MNE"]
[SourceTitle "playchess.com"]
[Source "ChessBase"]
[SourceQuality "1"]
[TimeControl "40/5400+30:1800+30"]

1. e4 {[%emt 0:00:04]} c5 {[%emt 0:00:30]} 2. Nf3 {[%emt 0:00:09]} Nc6 {[%emt 0:00:23]} 3. d4 {[%emt 0:00:13]} cxd4 {[%emt 0:00:11]} 4. Nxd4 {[%emt 0:00:04]} Nf6 {[%emt 0:00:20]} 5. Nc3 {[%emt 0:00:08]} d6 {[%emt 0:00:16]} 6. Be3 {[%emt 0:01:10]} e5 {[%emt 0:00:47]} 7. Nb3 {[%emt 0:02:36]} Be6 {[%emt 0:01:21]} 8. Be2 {[%emt 0:04:12]} Be7 {[%emt 0:00:39]} 9. f3 {[%emt 0:04:11]} O-O {[%emt 0:02:15]} 10. Qd2 {[%emt 0:01:19]} a5 {[%emt 0:01:10]} 11. Na4 {[%emt 0:10:11]} Nd7 {[%emt 0:06:01]} 12. O-O-O {[%emt 0:11:55]} Rc8 {[%emt 0:03:31]} 13. Kb1 {[%emt 0:05:17]} Nb4 {[%emt 0:06:08]} 14. Rc1 {[%emt 0:04:20]} b6 {[%emt 0:10:26]} 15. Bb5 {[%emt 0:03:47]} Nc5 {[%emt 0:04:03]} 16. Naxc5 {[%emt 0:00:38]} bxc5 {[%emt 0:00:17]} 17. c4 {[%emt 0:06:51]} a4 {[%emt 0:06:04]} 18. a3 {[%emt 0:05:18]} axb3 {[%emt 0:00:25]} 19. axb4 {[%emt 0:03:26]} Ra8 {[%emt 0:00:45]} 20. Bc6 {[%emt 0:02:57]} Qb6 {[%emt 0:01:46]} 21. Qc3 {[%emt 0:04:36]} Ra1+ {[%emt 0:00:24]} 0-1

[Event "European Women-ch 2023"]
[Site "Petrovac"]
[Date "2023.03.27"]
[Round "9.23"]
[White "Gajcin, Marina"]
[Black "Berke, Ana"]
[Result "1-0"]
[ECO "B40"]
[WhiteElo "2215"]
[BlackElo "2107"]
[Annotator "TA"]
[PlyCount "109"]
[EventDate "2023.03.15"]
[EventType "swiss"]
[EventCountry "MNE"]
[SourceTitle "playchess.com"]
[Source "ChessBase"]
[SourceQuality "1"]
[TimeControl "40/5400+30:1800+30"]

{[%evp 9,109,10,45,47,43,27,43,54,89,89,226,185,252,243,223,231,239,252,253,239,260,160,160,165,169,155,255,114,133,116,120,114,138,118,180,181,327,134,244,227,230,231,242,227,222,211,256,243,232,154,148,122,127,122,122,122,246,89,89,52,78,78,71,79,70,70,70,70,70,70,98,98,98,98,208,208,285,257,331,230,572,567,1054,923,1613,1627,1647,1601,4610,4427,1923,2017,29985,29986,29985,29986,29990,29991,29994,29994,29996,29993]} 1. e4 {[%emt 0:00:03]} c5 {[%emt 0:00:06]} 2. Nf3 {[%emt 0:00:13]} e6 {[%emt 0:00:06]} 3. c3 {[%emt 0:00:06]} Nf6 {[%emt 0:01:25]} 4. Bd3 {[%emt 0:00:16]} Nc6 {[%emt 0:00:45]} 5. Bc2 {[%emt 0:00:33]} e5 {[%emt 0:00:34]} 6. O-O {[%emt 0:04:38] B40: Sicilian: 2...e6, Unusual lines.} d6 {[%emt 0:01:39]} 7. h3 {[%emt 0:07:30]} g6 {[%emt 0:00:35]} 8. d4 {[%emt 0:01:17] [#] White is slightly better.} Qc7 $146 {[%emt 0:06:15]} ({Predecessor:} 8... Bg7 9. Re1 O-O 10. Na3 Nd7 11. dxc5 dxc5 12. Nc4 Nb6 13. Nd6 Be6 14. Be3 Qe7 {1-0 Guarin,D (1979)-Baasansuren,E (1871) World Amateur-ch 2013 (2)}) 9. Be3 {[%emt 0:03:38]} c4 {[%emt 0:04:59]} (9... Bd7 $16) 10. Qe2 {[%emt 0:05:10]} Na5 {[%emt 0:00:29]} (10... Bg7 $142 11. Qxc4 Bd7) 11. b4 {[%emt 0:04:53]} cxb3 {[%emt 0:01:15]} 12. axb3 {[%emt 0:00:09]} Bd7 {[%emt 0:01:35]} 13. dxe5 {[%emt 0:03:19]} dxe5 {[%emt 0:01:39] [#]} 14. Nxe5 $1 {[%emt 0:06:05][%mdl 512]} Bg7 {[%emt 0:02:59]} 15. Bd4 {[%emt 0:08:41]} O-O {[%emt 0:07:37]} 16. b4 {[%emt 0:04:44]} Nc6 {[%emt 0:01:15]} 17. Nxc6 {[%emt 0:00:15]} Bxc6 {[%emt 0:01:54] [#]} (17... Qxc6 $16 {might work better.} 18. Nd2 (18. Rxa7 Rxa7 19. Bxa7 Re8 $16) 18... Qc7) 18. Nd2 {[%emt 0:09:18]} (18. Rxa7 Rxa7 19. Bxa7 b6 $17) (18. b5 $1 $18 {[%cal Rb5c6] is more deadly.} Bd7 19. Rxa7) 18... a6 $16 {[%emt 0:03:12]} 19. Rfe1 $36 {[%emt 0:06:39][%mdl 2048] Black is under strong pressure. White is more active.} Rfe8 {[%emt 0:00:22]} 20. Qf3 {[%emt 0:02:17]} Rad8 {[%emt 0:05:00]} 21. Nb3 {[%emt 0:02:50]} Qe7 {[%emt 0:03:38]} (21... Nd7 $16 22. Bxg7 Kxg7) 22. Na5 $18 {[%emt 0:07:53]} Bb5 {[%emt 0:03:25]} (22... Nd7 {keeps fighting.} 23. Nxc6 bxc6 24. Bxg7 (24. Rxa6 Bxd4 25. cxd4 Qxb4 $16) 24... Kxg7 25. Rxa6 c5) 23. Rad1 {[%emt 0:03:22]} (23. e5 $18 {and White stays clearly on top.} Nd7 24. Nxb7 (24. Qxb7 Nxe5 25. Qxe7 Rxe7 $18) 24... Nxe5 25. Bxe5 Bxe5 26. Nxd8 Qxd8 27. Bb3) 23... Rc8 {[%emt 0:07:48]} (23... Nd7 $16 {was called for.}) 24. e5 {[%emt 0:00:57]} Nd7 {[%emt 0:03:53][%cal Rd7e5]} 25. Qxb7 {[%emt 0:03:13]} ({Less strong is} 25. Nxb7 Bc6 26. Be4 Nxe5 27. Bxe5 Bxe4 28. Qxe4 Qxe5 29. Qxe5 Rxe5 $14) 25... Nxe5 {[%emt 0:05:04]} 26. Qxe7 {[%emt 0:05:30]} Rxe7 {[%emt 0:00:32]} 27. Re3 {[%emt 0:02:35] Prevents Nf3+.} Nc6 {[%emt 0:02:22] ...Nxd4 is the strong threat.} 28. Rxe7 {[%emt 0:00:36]} Nxe7 {[%emt 0:00:30]} 29. Bc5 {[%emt 0:00:21] Strongly threatening c4.} Nc6 {[%emt 0:02:51]} 30. Nxc6 {[%emt 0:00:15]} Bxc6 {[%emt 0:00:20]} 31. c4 {[%emt 0:01:09]} a5 {[%emt 0:01:16]} 32. bxa5 {[%emt 0:03:15]} Bxg2 {[%emt 0:01:48]} 33. Kxg2 $2 {[%emt 0:01:42]} (33. Bb6 $18 {has better winning chances.} Bf3 34. a6) 33... Rxc5 $16 {[%emt 0:00:05][%mdl 4096] Endgame KRB-KRB} 34. Rd8+ {[%emt 0:02:34]} Bf8 {[%emt 0:03:26]} 35. a6 {[%emt 0:00:09] Hoping for a7.} Ra5 {[%emt 0:00:35]} 36. Ra8 {[%emt 0:01:11][%cal Oc4c5]} Kg7 {[%emt 0:00:34]} 37. Be4 {[%emt 0:00:13]} Ra2 {[%emt 0:03:33]} 38. Kf1 {[%emt 0:00:16]} ({Of course not} 38. a7 Bc5 $15) 38... Bc5 {[%emt 0:01:30]} 39. f3 {[%emt 0:00:04]} Be3 {[%emt 0:03:33]} 40. Bb7 {[%emt 0:00:00]} Kf6 {[%emt 0:00:00]} 41. Rc8 {[%emt 0:07:11]} Rc2 {[%emt 0:09:36] [#]} (41... Bf4 $16 {was necessary.}) 42. Rc7 $1 $18 {[%emt 0:03:36]} Ra2 {[%emt 0:06:18]} 43. c5 {[%emt 0:04:51][%cal Of3f4,Bc4c5,Bc5c6][%mdl 32] Threatens to win with f4!} h5 {[%emt 0:02:36]} 44. c6 {[%emt 0:08:36] Black must now prevent Rd7.} Bb6 $2 {[%emt 0:02:09]} (44... Rc2 {is more resistant.} 45. Bc8 Bb6) 45. Rd7 {[%emt 0:00:24]} Kg5 {[%emt 0:09:47]} 46. Rxf7 {[%emt 0:03:05]} Kh4 {[%emt 0:00:04]} 47. c7 {[%emt 0:00:50]} Bxc7 {[%emt 0:01:10]} 48. Rxc7 {[%emt 0:00:03] KRB-KR} g5 {[%emt 0:00:29]} 49. Bc8 {[%emt 0:01:27]} Kg3 {[%emt 0:00:13]} 50. a7 {[%emt 0:01:25] Be6 would be deadly.} h4 {[%emt 0:00:51]} 51. Be6 {[%emt 0:01:31] White mates.} Ra5 {[%emt 0:00:48] [#]} 52. Bd5 $1 {[%emt 0:00:37]} Rxd5 {[%emt 0:00:13]} (52... Ra1+ 53. Ke2) 53. a8=Q {[%emt 0:00:03]} ({Not} 53. a8=B Ra5 $14) 53... Rf5 {[%emt 0:00:06]} 54. Rc3 {[%emt 0:00:42]} Rf4 {[%emt 0:00:24]} 55. Qa2 {[%emt 0:00:41] Weighted Error Value: White=0.23 (precise) /Black=0.57} 1-0

[Event "European Women-ch 2023"]
[Site "Petrovac"]
[Date "2023.03.27"]
[Round "9.23"]
[White "Recica, Jona"]
[Black "Humbatova, Nazli"]
[Result "0-1"]
[ECO "C11"]
[WhiteElo "1231"]
[BlackElo "1737"]
[Annotator "NA RC COMBH"]
[PlyCount "84"]
[EventDate "2023.03.15"]
[EventType "swiss"]
[EventCountry "MNE"]
[SourceTitle "playchess.com"]
[Source "ChessBase"]
[SourceQuality "1"]
[TimeControl "40/5400+30:1800+30"]

1. e4 {[%emt 0:00:04]} e6 {[%emt 0:00:05]} 2. d4 {[%emt 0:00:09]} d5 {[%emt 0:00:05]} 3. Nc3 {[%emt 0:00:05]} Nf6 {[%emt 0:00:06]} 4. e5 {[%emt 0:00:05]} Nfd7 {[%emt 0:00:04]} 5. Nce2 {[%emt 0:00:42]} c5 {[%emt 0:00:06]} 6. c3 {[%emt 0:00:42]} Nc6 {[%emt 0:00:48]} 7. f4 {[%emt 0:00:54]} Be7 {[%emt 0:01:01]} 8. Nf3 {[%emt 0:00:58]} O-O {[%emt 0:02:11]} 9. g3 {[%emt 0:01:38]} a6 {[%emt 0:06:44]} 10. Bh3 {[%emt 0:02:38]} c4 {[%emt 0:15:43]} 11. O-O {[%emt 0:05:22]} Re8 {[%emt 0:12:12]} 12. f5 {[%emt 0:05:55]} exf5 {[%emt 0:13:25]} 13. Bxf5 {[%emt 0:02:53]} Nf8 {[%emt 0:01:19]} 14. Qc2 {[%emt 0:03:35]} Ng6 {[%emt 0:06:36]} 15. h4 {[%emt 0:07:45]} Bxf5 {[%emt 0:13:20]} 16. Qxf5 {[%emt 0:00:27]} Qc8 {[%emt 0:02:59]} 17. Qxc8 {[%emt 0:01:51]} Raxc8 {[%emt 0:00:05]} 18. h5 {[%emt 0:00:38]} Nf8 {[%emt 0:01:15]} 19. Nf4 {[%emt 0:00:30]} Rcd8 {[%emt 0:00:26]} 20. Bd2 {[%emt 0:03:10]} h6 {[%emt 0:03:57]} 21. g4 {[%emt 0:05:52]} f6 {[%emt 0:03:55]} 22. Rae1 {[%emt 0:02:11]} fxe5 {[%emt 0:00:41]} 23. Nxe5 {[%emt 0:02:16]} Bg5 {[%emt 0:02:04]} 24. Nf3 {[%emt 0:02:59]} Rxe1 {[%emt 0:04:58]} 25. Rxe1 {[%emt 0:00:18]} Nh7 {[%emt 0:00:54]} 26. Ne6 {[%emt 0:07:00]} Bxd2 {[%emt 0:00:33]} 27. Nxd8 {[%emt 0:00:25]} Bxe1 {[%emt 0:00:09]} 28. Nxc6 {[%emt 0:00:08]} bxc6 {[%emt 0:00:47]} 29. Nxe1 {[%emt 0:00:12]} Nf6 {[%emt 0:00:04]} 30. Nc2 {[%emt 0:00:38]} Nxg4 {[%emt 0:04:22]} 31. Nb4 {[%emt 0:00:14]} Nf6 {[%emt 0:01:13]} 32. Nxc6 {[%emt 0:00:19]} Kf7 {[%emt 0:00:09]} 33. a4 {[%emt 0:00:55]} Nxh5 {[%emt 0:01:39]} 34. Nb4 {[%emt 0:02:48]} Ke6 {[%emt 0:00:40]} 35. Nxa6 {[%emt 0:00:16]} Kd6 {[%emt 0:00:42]} 36. Kf2 {[%emt 0:01:35]} Nf6 {[%emt 0:00:10]} 37. Nb4 {[%emt 0:01:37]} g5 {[%emt 0:01:51]} 38. Nc2 {[%emt 0:04:17]} Kc6 {[%emt 0:00:28]} 39. Na1 {[%emt 0:05:02]} Kb6 {[%emt 0:00:18]} 40. b3 {[%emt 0:00:00]} Ne4+ {[%emt 0:00:00]} 41. Kf3 {[%emt 0:04:44]} Nd2+ {[%emt 0:02:27]} 42. Kg4 {[%emt 0:00:25]} cxb3 {[%emt 0:01:06]} 0-1